[Event "Early-Titled-Tuesday-Blitz-February-27-2024"]
[Site "Chess.com"]
[Date "2024.02.27"]
[Round "10"]
[White "Cambek64"]
[Black "karinachess1"]
[Result "0-1"]
[WhiteElo "2494"]
[BlackElo "2620"]
[TimeControl "180+1"]
[EndTime "9:55:42 PST"]
[Termination "karinachess1 won on time"]

1. b3 {[%clk 0:02:58.9]} 1... e5 {[%clk 0:03:00.1]} 2. Bb2 {[%clk 0:02:58.9]}
2... Nc6 {[%clk 0:03:00.6]} 3. e3 {[%clk 0:02:58.7]} 3... g6 {[%clk 0:03:00.7]}
4. c4 {[%clk 0:02:56]} 4... Bg7 {[%clk 0:03:01]} 5. d3 {[%clk 0:02:56.3]} 5...
Nge7 {[%clk 0:02:59.7]} 6. Nd2 {[%clk 0:02:56.4]} 6... O-O {[%clk 0:03:00.4]} 7.
a3 {[%clk 0:02:56.2]} 7... a5 {[%clk 0:02:59.9]} 8. Qc2 {[%clk 0:02:56.2]} 8...
d6 {[%clk 0:02:47.2]} 9. Ngf3 {[%clk 0:02:56.7]} 9... h6 {[%clk 0:02:47.8]} 10.
Be2 {[%clk 0:02:56.8]} 10... Be6 {[%clk 0:02:48.3]} 11. O-O {[%clk 0:02:57.1]}
11... Kh7 {[%clk 0:02:48.2]} 12. Bc3 {[%clk 0:02:56.1]} 12... f5 {[%clk
0:02:36.3]} 13. Qb2 {[%clk 0:02:56.6]} 13... Bg8 {[%clk 0:02:26.4]} 14. b4
{[%clk 0:02:55.8]} 14... axb4 {[%clk 0:02:23.7]} 15. axb4 {[%clk 0:02:56]} 15...
Qd7 {[%clk 0:02:17.5]} 16. b5 {[%clk 0:02:53.5]} 16... Rxa1 {[%clk 0:02:17.5]}
17. Rxa1 {[%clk 0:02:50.5]} 17... Nd8 {[%clk 0:02:17.8]} 18. c5 {[%clk
0:02:30.9]} 18... Nd5 {[%clk 0:02:12.2]} 19. cxd6 {[%clk 0:02:28.3]} 19... cxd6
{[%clk 0:01:50.5]} 20. d4 {[%clk 0:02:24.1]} 20... f4 {[%clk 0:01:31.1]} 21.
dxe5 {[%clk 0:01:28]} 21... fxe3 {[%clk 0:01:25.5]} 22. fxe3 {[%clk 0:01:26.1]}
22... Nxc3 {[%clk 0:01:21]} 23. Qxc3 {[%clk 0:01:25.4]} 23... dxe5 {[%clk
0:01:21.5]} 24. Ne4 {[%clk 0:01:20.3]} 24... Ne6 {[%clk 0:01:03]} 25. Rd1 {[%clk
0:01:18.2]} 25... Qe7 {[%clk 0:01:03.2]} 26. h3 {[%clk 0:01:03]} 26... Rd8
{[%clk 0:00:59.2]} 27. Rxd8 {[%clk 0:01:00.6]} 27... Qxd8 {[%clk 0:01:00.1]} 28.
Bc4 {[%clk 0:00:58.3]} 28... Qb6 {[%clk 0:00:38]} 29. Qb3 {[%clk 0:00:49.5]}
29... Kh8 {[%clk 0:00:37.8]} 30. Kh2 {[%clk 0:00:48.6]} 30... Bf7 {[%clk
0:00:35.1]} 31. Nh4 {[%clk 0:00:43.7]} 31... Kh7 {[%clk 0:00:25.7]} 32. Nf3
{[%clk 0:00:37.8]} 32... Kh8 {[%clk 0:00:20.3]} 33. h4 {[%clk 0:00:35.9]} 33...
Bg8 {[%clk 0:00:19]} 34. h5 {[%clk 0:00:27.2]} 34... g5 {[%clk 0:00:15.8]} 35.
Kg3 {[%clk 0:00:21.6]} 35... Bf7 {[%clk 0:00:15.6]} 36. Nh2 {[%clk 0:00:19.6]}
36... Bg8 {[%clk 0:00:09.2]} 37. Ng4 {[%clk 0:00:19.9]} 37... Bf7 {[%clk
0:00:09.4]} 38. Kf3 {[%clk 0:00:10.3]} 38... Bg8 {[%clk 0:00:07.4]} 39. Qd3
{[%clk 0:00:07.4]} 39... Qd8 {[%clk 0:00:04.2]} 40. Qxd8 {[%clk 0:00:03.7]}
40... Nxd8 {[%clk 0:00:05.1]} 41. Bxg8 {[%clk 0:00:01.7]} 41... Kxg8 {[%clk
0:00:06]} 0-1

[Event "Early-Titled-Tuesday-Blitz-February-27-2024"]
[Site "Chess.com"]
[Date "2024.02.27"]
[Round "10"]
[White "Msb2"]
[Black "Elsa167"]
[Result "1-0"]
[WhiteElo "3023"]
[BlackElo "2895"]
[TimeControl "180+1"]
[EndTime "9:55:43 PST"]
[Termination "Msb2 won by resignation"]

1. d4 {[%clk 0:03:00.9]} 1... Nf6 {[%clk 0:02:57.8]} 2. c4 {[%clk 0:03:01.6]}
2... g6 {[%clk 0:02:58]} 3. Nc3 {[%clk 0:03:02.2]} 3... Bg7 {[%clk 0:02:58.6]}
4. e4 {[%clk 0:03:02.8]} 4... d6 {[%clk 0:02:59.3]} 5. Be2 {[%clk 0:03:03.1]}
5... Nbd7 {[%clk 0:02:57.3]} 6. Nf3 {[%clk 0:03:03.4]} 6... O-O {[%clk
0:02:56.7]} 7. O-O {[%clk 0:03:03.7]} 7... e5 {[%clk 0:02:57]} 8. Be3 {[%clk
0:03:04.5]} 8... Qe7 {[%clk 0:02:56.4]} 9. Qc2 {[%clk 0:03:04.8]} 9... c6 {[%clk
0:02:56]} 10. Rad1 {[%clk 0:03:05.5]} 10... h6 {[%clk 0:02:53.9]} 11. h3 {[%clk
0:03:04.9]} 11... Nh5 {[%clk 0:02:46.3]} 12. Qd2 {[%clk 0:03:01.3]} 12... Kh7
{[%clk 0:02:41]} 13. Rfe1 {[%clk 0:02:57.3]} 13... b6 {[%clk 0:02:22.6]} 14.
dxe5 {[%clk 0:02:42.9]} 14... dxe5 {[%clk 0:02:21.8]} 15. Qd6 {[%clk 0:02:43.6]}
15... Qf6 {[%clk 0:02:08.4]} 16. Qxf6 {[%clk 0:02:34.8]} 16... Nhxf6 {[%clk
0:02:04.8]} 17. Rd6 {[%clk 0:02:33.3]} 17... Bb7 {[%clk 0:02:02.8]} 18. Red1
{[%clk 0:02:32.7]} 18... Nc5 {[%clk 0:01:46.1]} 19. Bxc5 {[%clk 0:02:29.7]}
19... bxc5 {[%clk 0:01:47]} 20. Nxe5 {[%clk 0:02:30.1]} 20... Nxe4 {[%clk
0:01:13.1]} 21. Nxe4 {[%clk 0:02:30.2]} 21... Bxe5 {[%clk 0:01:13.6]} 22. Rd7
{[%clk 0:02:30.9]} 22... Bc8 {[%clk 0:01:06.3]} 23. Re7 {[%clk 0:02:30.2]} 23...
Bxb2 {[%clk 0:01:05.1]} 24. Rb1 {[%clk 0:02:12.1]} 24... Bd4 {[%clk 0:01:04.4]}
25. Nd6 {[%clk 0:02:12.3]} 25... Be6 {[%clk 0:00:59.6]} 26. Bg4 {[%clk
0:02:11.9]} 26... Bf6 {[%clk 0:00:48.2]} 27. Rc7 {[%clk 0:02:04.4]} 27... Be5
{[%clk 0:00:42.8]} 28. Bxe6 {[%clk 0:02:00.2]} 28... Bxd6 {[%clk 0:00:43]} 29.
Rxc6 {[%clk 0:01:52.1]} 29... Rad8 {[%clk 0:00:25.3]} 30. Rb7 {[%clk 0:01:51.8]}
30... Kg7 {[%clk 0:00:21.7]} 31. Bd5 {[%clk 0:01:51.3]} 31... Be5 {[%clk
0:00:19.6]} 32. Rxc5 {[%clk 0:01:49.9]} 32... Rb8 {[%clk 0:00:17.7]} 33. Rcb5
{[%clk 0:01:42.4]} 33... Rxb7 {[%clk 0:00:16.5]} 34. Rxb7 {[%clk 0:01:43.3]}
34... Bd4 {[%clk 0:00:15.8]} 35. Kf1 {[%clk 0:01:41.9]} 35... Kf6 {[%clk
0:00:15.5]} 36. g3 {[%clk 0:01:40.5]} 36... Ke5 {[%clk 0:00:15.6]} 37. Rxf7
{[%clk 0:01:36.1]} 37... Rxf7 {[%clk 0:00:12.2]} 38. Bxf7 {[%clk 0:01:37]} 38...
g5 {[%clk 0:00:13.1]} 39. Ke2 {[%clk 0:01:37.3]} 39... Bc5 {[%clk 0:00:13.2]}
40. Bd5 {[%clk 0:01:36.2]} 40... Bb6 {[%clk 0:00:13.6]} 41. Bg8 {[%clk
0:01:19.6]} 41... Bc5 {[%clk 0:00:13.6]} 42. Bh7 {[%clk 0:01:20.2]} 42... Bb6
{[%clk 0:00:14.1]} 43. f3 {[%clk 0:01:20.8]} 43... Ba5 {[%clk 0:00:09.7]} 44.
Bd3 {[%clk 0:01:20.5]} 44... Bb6 {[%clk 0:00:09.2]} 45. h4 {[%clk 0:01:20.2]}
45... Kd4 {[%clk 0:00:08.4]} 46. f4 {[%clk 0:01:11]} 46... gxf4 {[%clk
0:00:06.6]} 47. gxf4 {[%clk 0:01:11.9]} 47... Bd8 {[%clk 0:00:06.4]} 48. h5
{[%clk 0:01:12.1]} 48... Bc7 {[%clk 0:00:07]} 49. f5 {[%clk 0:01:11.6]} 49...
Bd8 {[%clk 0:00:07.2]} 50. Kd2 {[%clk 0:01:07.6]} 50... Be7 {[%clk 0:00:06.1]}
51. Kc2 {[%clk 0:01:08]} 51... Bf6 {[%clk 0:00:04.6]} 52. Bf1 {[%clk 0:01:06.8]}
52... Be7 {[%clk 0:00:04.6]} 53. Kb3 {[%clk 0:01:07.1]} 53... Bd8 {[%clk
0:00:04.6]} 54. Kb4 {[%clk 0:01:07.1]} 54... a6 {[%clk 0:00:02.3]} 55. Be2
{[%clk 0:01:00.9]} 55... Ke4 {[%clk 0:00:01.7]} 56. Bg4 {[%clk 0:00:57.5]} 56...
Kd4 {[%clk 0:00:02.3]} 57. Bh3 {[%clk 0:00:48.9]} 57... Be7+ {[%clk 0:00:02.3]}
58. Ka5 {[%clk 0:00:47.9]} 58... Kxc4 {[%clk 0:00:02.7]} 59. Kxa6 {[%clk
0:00:48.6]} 59... Kd5 {[%clk 0:00:02.1]} 60. Kb5 {[%clk 0:00:46]} 60... Ke5
{[%clk 0:00:02.3]} 61. a4 {[%clk 0:00:46.5]} 61... Bg5 {[%clk 0:00:01.7]} 62. a5
{[%clk 0:00:46.3]} 62... Be3 {[%clk 0:00:02.6]} 63. Kc6 {[%clk 0:00:46.6]} 63...
Kf6 {[%clk 0:00:02]} 64. a6 {[%clk 0:00:46.8]} 64... Kg5 {[%clk 0:00:02.6]} 65.
Bg4 {[%clk 0:00:44.8]} 65... Kxg4 {[%clk 0:00:01.4]} 66. f6 {[%clk 0:00:44.9]}
66... Kxh5 {[%clk 0:00:01.6]} 67. f7 {[%clk 0:00:45.8]} 67... Kg4 {[%clk
0:00:02.1]} 68. f8=Q {[%clk 0:00:46.3]} 68... h5 {[%clk 0:00:02.9]} 69. Qg8+
{[%clk 0:00:46.9]} 1-0

[Event "Early-Titled-Tuesday-Blitz-February-27-2024"]
[Site "Chess.com"]
[Date "2024.02.27"]
[Round "10"]
[White "thebeast2900"]
[Black "dennisodessa"]
[Result "0-1"]
[WhiteElo "2301"]
[BlackElo "2593"]
[TimeControl "180+1"]
[EndTime "9:55:44 PST"]
[Termination "dennisodessa won on time"]

1. a3 {[%clk 0:03:00.9]} 1... d5 {[%clk 0:02:53.5]} 2. Nf3 {[%clk 0:02:59.6]}
2... Nf6 {[%clk 0:02:49.3]} 3. e3 {[%clk 0:02:59]} 3... e6 {[%clk 0:02:43.7]} 4.
d4 {[%clk 0:02:58.8]} 4... Bd6 {[%clk 0:02:42.6]} 5. c4 {[%clk 0:02:57.6]} 5...
dxc4 {[%clk 0:02:41.2]} 6. Bxc4 {[%clk 0:02:56.6]} 6... b6 {[%clk 0:02:41.8]} 7.
Nc3 {[%clk 0:02:55.5]} 7... Bb7 {[%clk 0:02:40.4]} 8. O-O {[%clk 0:02:53.3]}
8... O-O {[%clk 0:02:41.1]} 9. Re1 {[%clk 0:02:49.1]} 9... Nbd7 {[%clk
0:02:41.6]} 10. e4 {[%clk 0:02:38.6]} 10... e5 {[%clk 0:02:40.5]} 11. Bg5 {[%clk
0:02:35.8]} 11... Re8 {[%clk 0:02:32.8]} 12. Qb3 {[%clk 0:02:08.8]} 12... Re7
{[%clk 0:02:22.2]} 13. Nd5 {[%clk 0:02:00.8]} 13... Nxd5 {[%clk 0:02:13.9]} 14.
Bxd5 {[%clk 0:01:59.3]} 14... Bxd5 {[%clk 0:02:13]} 15. Qxd5 {[%clk 0:02:00.2]}
15... Nf6 {[%clk 0:02:12.7]} 16. Bxf6 {[%clk 0:01:56.7]} 16... gxf6 {[%clk
0:02:13.6]} 17. Nh4 {[%clk 0:01:36.7]} 17... exd4 {[%clk 0:02:03.1]} 18. Nf5
{[%clk 0:01:36.3]} 18... Re5 {[%clk 0:02:00]} 19. Qb3 {[%clk 0:01:14.2]} 19...
Kh8 {[%clk 0:01:58]} 20. Qxf7 {[%clk 0:01:12.4]} 20... Qf8 {[%clk 0:01:50.8]}
21. Qh5 {[%clk 0:00:55.7]} 21... Rae8 {[%clk 0:01:38.1]} 22. Qh4 {[%clk
0:00:43.7]} 22... c5 {[%clk 0:01:30.3]} 23. g3 {[%clk 0:00:34.1]} 23... Bc7
{[%clk 0:01:17.6]} 24. Rad1 {[%clk 0:00:19.1]} 24... Qf7 {[%clk 0:01:01.9]} 25.
Nh6 {[%clk 0:00:14.3]} 25... Qe6 {[%clk 0:00:48]} 26. f3 {[%clk 0:00:12.9]}
26... Rg5 {[%clk 0:00:42.3]} 27. Ng4 {[%clk 0:00:09.8]} 27... Reg8 {[%clk
0:00:37.5]} 28. Kf2 {[%clk 0:00:05.1]} 28... f5 {[%clk 0:00:27.5]} 29. exf5
{[%clk 0:00:04.6]} 29... Qxf5 {[%clk 0:00:28.4]} 30. Re7 {[%clk 0:00:01.7]}
30... Rxg4 {[%clk 0:00:27.9]} 31. Qxh7+ {[%clk 0:00:01.2]} 31... Qxh7 {[%clk
0:00:26.9]} 32. Rxh7+ {[%clk 0:00:02.1]} 32... Kxh7 {[%clk 0:00:26.3]} 33. fxg4
{[%clk 0:00:03]} 33... Rxg4 {[%clk 0:00:21.6]} 34. Re1 {[%clk 0:00:03.9]} 34...
Rg7 {[%clk 0:00:20.7]} 35. Re6 {[%clk 0:00:04]} 35... Rd7 {[%clk 0:00:21.2]} 36.
Ke2 {[%clk 0:00:03.7]} 36... Kg7 {[%clk 0:00:19.4]} 37. Kd3 {[%clk 0:00:03.8]}
37... Kf7 {[%clk 0:00:20.3]} 38. Rh6 {[%clk 0:00:03.9]} 38... b5 {[%clk
0:00:20.1]} 39. b3 {[%clk 0:00:03.5]} 39... Bb6 {[%clk 0:00:14.5]} 40. Rh7+
{[%clk 0:00:02.9]} 40... Ke6 {[%clk 0:00:14.3]} 41. Rxd7 {[%clk 0:00:03.4]}
41... Kxd7 {[%clk 0:00:14.2]} 42. h3 {[%clk 0:00:03.7]} 42... Ke6 {[%clk
0:00:14.7]} 43. g4 {[%clk 0:00:04]} 43... Kd5 {[%clk 0:00:15.6]} 44. h4 {[%clk
0:00:04.2]} 44... c4+ {[%clk 0:00:16.5]} 45. bxc4+ {[%clk 0:00:04.2]} 45...
bxc4+ {[%clk 0:00:17.4]} 46. Kd2 {[%clk 0:00:04.7]} 46... Bd8 {[%clk 0:00:18.1]}
47. g5 {[%clk 0:00:04.4]} 47... d3 {[%clk 0:00:18.3]} 48. g6 {[%clk 0:00:03.5]}
48... Bf6 {[%clk 0:00:17.7]} 49. h5 {[%clk 0:00:03.5]} 49... Bg7 {[%clk
0:00:18.4]} 50. a4 {[%clk 0:00:03.1]} 50... a5 {[%clk 0:00:17.9]} 51. Kd1 {[%clk
0:00:02]} 51... Bh6 {[%clk 0:00:18]} 0-1

[Event "Early-Titled-Tuesday-Blitz-February-27-2024"]
[Site "Chess.com"]
[Date "2024.02.27"]
[Round "10"]
[White "LeninGuerra"]
[Black "Slovineanu"]
[Result "1/2-1/2"]
[WhiteElo "2575"]
[BlackElo "2478"]
[TimeControl "180+1"]
[EndTime "9:55:46 PST"]
[Termination "Game drawn by repetition"]

1. e4 {[%clk 0:02:54]} 1... e6 {[%clk 0:02:59.7]} 2. d4 {[%clk 0:02:52]} 2... d5
{[%clk 0:02:59.7]} 3. Nd2 {[%clk 0:02:52.1]} 3... Nf6 {[%clk 0:02:59]} 4. e5
{[%clk 0:02:52.5]} 4... Nfd7 {[%clk 0:02:59]} 5. Bd3 {[%clk 0:02:53.2]} 5... c5
{[%clk 0:02:58.8]} 6. c3 {[%clk 0:02:53.9]} 6... Nc6 {[%clk 0:02:59.2]} 7. Ne2
{[%clk 0:02:53.6]} 7... Be7 {[%clk 0:02:47.2]} 8. O-O {[%clk 0:02:52.6]} 8...
Rb8 {[%clk 0:02:44]} 9. f4 {[%clk 0:02:50]} 9... g6 {[%clk 0:02:43.8]} 10. Nf3
{[%clk 0:02:49.6]} 10... b5 {[%clk 0:02:41.9]} 11. a3 {[%clk 0:02:48]} 11... a5
{[%clk 0:02:41.7]} 12. Kh1 {[%clk 0:02:46.7]} 12... Qb6 {[%clk 0:02:39.5]} 13.
Be3 {[%clk 0:02:44.2]} 13... Ba6 {[%clk 0:02:22.9]} 14. Ng3 {[%clk 0:02:24.7]}
14... b4 {[%clk 0:02:15]} 15. axb4 {[%clk 0:02:23.1]} 15... cxb4 {[%clk
0:02:12.3]} 16. c4 {[%clk 0:02:15.3]} 16... dxc4 {[%clk 0:02:00.6]} 17. Be4
{[%clk 0:02:15.3]} 17... O-O {[%clk 0:01:39.5]} 18. Re1 {[%clk 0:02:05.2]} 18...
Qb5 {[%clk 0:01:31.7]} 19. d5 {[%clk 0:02:00]} 19... exd5 {[%clk 0:01:31.8]} 20.
Bxd5 {[%clk 0:02:00.9]} 20... Rbd8 {[%clk 0:01:26.4]} 21. Bxc6 {[%clk
0:01:36.5]} 21... Qxc6 {[%clk 0:01:26]} 22. Rxa5 {[%clk 0:01:36.8]} 22... Nxe5
{[%clk 0:01:14.8]} 23. Nxe5 {[%clk 0:01:25.8]} 23... Rxd1 {[%clk 0:01:13]} 24.
Rxd1 {[%clk 0:01:26.7]} 24... Qe6 {[%clk 0:01:05.3]} 25. Bc5 {[%clk 0:00:43.9]}
25... Bxc5 {[%clk 0:00:53]} 26. Rxc5 {[%clk 0:00:44.8]} 26... Rc8 {[%clk
0:00:50.7]} 27. Rcd5 {[%clk 0:00:40.1]} 27... c3 {[%clk 0:00:46.7]} 28. bxc3
{[%clk 0:00:36.9]} 28... bxc3 {[%clk 0:00:46.5]} 29. R5d4 {[%clk 0:00:22.8]}
29... c2 {[%clk 0:00:45.1]} 30. Rc1 {[%clk 0:00:23.4]} 30... Qb6 {[%clk
0:00:43.7]} 31. Re4 {[%clk 0:00:21.3]} 31... Qb1 {[%clk 0:00:41.7]} 32. Ree1
{[%clk 0:00:21.4]} 32... Qb4 {[%clk 0:00:38.7]} 33. Rg1 {[%clk 0:00:15.5]} 33...
Qxf4 {[%clk 0:00:37.8]} 34. Nf3 {[%clk 0:00:15.8]} 34... Bb7 {[%clk 0:00:35.4]}
35. Ne2 {[%clk 0:00:15.3]} 35... Qe3 {[%clk 0:00:33.7]} 36. Ned4 {[%clk
0:00:15.7]} 36... Bxf3 {[%clk 0:00:32.5]} 37. Nxf3 {[%clk 0:00:15]} 37... Kg7
{[%clk 0:00:27.6]} 38. h3 {[%clk 0:00:15.4]} 38... h6 {[%clk 0:00:26.6]} 39. Kh2
{[%clk 0:00:15.7]} 39... g5 {[%clk 0:00:21.2]} 40. Rge1 {[%clk 0:00:16.2]} 40...
Qf4+ {[%clk 0:00:20.7]} 41. Kh1 {[%clk 0:00:16.7]} 41... Rc3 {[%clk 0:00:19.3]}
42. Ng1 {[%clk 0:00:15.8]} 42... h5 {[%clk 0:00:18.9]} 43. Ne2 {[%clk
0:00:15.6]} 43... Qd2 {[%clk 0:00:18.9]} 44. Nxc3 {[%clk 0:00:15.6]} 44... Qxc3
{[%clk 0:00:19.4]} 45. Re2 {[%clk 0:00:16.1]} 45... g4 {[%clk 0:00:18]} 46.
Rexc2 {[%clk 0:00:16.5]} 46... Qe3 {[%clk 0:00:17.5]} 47. Kh2 {[%clk 0:00:16.5]}
47... f5 {[%clk 0:00:16.1]} 48. Rf1 {[%clk 0:00:15.6]} 48... Kg6 {[%clk
0:00:15.7]} 49. hxg4 {[%clk 0:00:14]} 49... hxg4 {[%clk 0:00:15.1]} 50. Kh1
{[%clk 0:00:13.2]} 50... Qe4 {[%clk 0:00:13.9]} 51. Rcf2 {[%clk 0:00:12.9]}
51... Kg5 {[%clk 0:00:13.2]} 52. Rxf5+ {[%clk 0:00:12.4]} 52... Qxf5 {[%clk
0:00:13.7]} 53. Rxf5+ {[%clk 0:00:12.5]} 53... Kxf5 {[%clk 0:00:14.3]} 54. Kg1
{[%clk 0:00:12.8]} 54... Kf4 {[%clk 0:00:14.5]} 55. Kf2 {[%clk 0:00:11.9]} 55...
g3+ {[%clk 0:00:14.5]} 56. Ke2 {[%clk 0:00:11.9]} 56... Ke4 {[%clk 0:00:14.9]}
57. Kd2 {[%clk 0:00:12.3]} 57... Kd4 {[%clk 0:00:15.3]} 58. Ke2 {[%clk
0:00:12.7]} 58... Ke4 {[%clk 0:00:15.8]} 59. Kd2 {[%clk 0:00:13.2]} 59... Kd4
{[%clk 0:00:16.2]} 60. Ke2 {[%clk 0:00:13.8]} 60... Ke4 {[%clk 0:00:16.7]}
1/2-1/2

[Event "Early-Titled-Tuesday-Blitz-February-27-2024"]
[Site "Chess.com"]
[Date "2024.02.27"]
[Round "10"]
[White "VinzentSpitzl"]
[Black "nicolasbatista3"]
[Result "0-1"]
[WhiteElo "2516"]
[BlackElo "2432"]
[TimeControl "180+1"]
[EndTime "9:55:46 PST"]
[Termination "nicolasbatista3 won on time"]

1. e4 {[%clk 0:03:00.9]} 1... c6 {[%clk 0:02:59.2]} 2. Nf3 {[%clk 0:03:00.6]}
2... d5 {[%clk 0:02:59.8]} 3. Nc3 {[%clk 0:03:01.2]} 3... Bg4 {[%clk 0:02:59.6]}
4. h3 {[%clk 0:03:01]} 4... Bxf3 {[%clk 0:03:00.2]} 5. Qxf3 {[%clk 0:03:01.9]}
5... e6 {[%clk 0:03:00.5]} 6. Be2 {[%clk 0:02:58]} 6... Nf6 {[%clk 0:03:00.5]}
7. O-O {[%clk 0:02:53]} 7... Be7 {[%clk 0:03:00]} 8. d4 {[%clk 0:02:50.2]} 8...
dxe4 {[%clk 0:02:59]} 9. Nxe4 {[%clk 0:02:50.1]} 9... Nxe4 {[%clk 0:02:59.4]}
10. Qxe4 {[%clk 0:02:50.1]} 10... Nd7 {[%clk 0:02:57.9]} 11. c3 {[%clk
0:02:47.7]} 11... Nf6 {[%clk 0:02:57.4]} 12. Qd3 {[%clk 0:02:46.5]} 12... O-O
{[%clk 0:02:57.4]} 13. Re1 {[%clk 0:02:44.6]} 13... c5 {[%clk 0:02:56.7]} 14.
dxc5 {[%clk 0:02:43.9]} 14... Bxc5 {[%clk 0:02:51.4]} 15. Bg5 {[%clk 0:02:35.9]}
15... Qb6 {[%clk 0:02:36.4]} 16. Qf3 {[%clk 0:02:20.7]} 16... Nd5 {[%clk
0:02:35.3]} 17. b4 {[%clk 0:02:15.4]} 17... Be7 {[%clk 0:02:31.2]} 18. Bxe7
{[%clk 0:02:14.8]} 18... Nxe7 {[%clk 0:02:32.1]} 19. a3 {[%clk 0:02:10.4]} 19...
a5 {[%clk 0:02:22.7]} 20. Bd3 {[%clk 0:02:03.8]} 20... Rfc8 {[%clk 0:02:14.9]}
21. Be4 {[%clk 0:01:49.3]} 21... Rc7 {[%clk 0:01:55.2]} 22. Red1 {[%clk
0:01:47.3]} 22... g6 {[%clk 0:01:48.4]} 23. h4 {[%clk 0:01:42]} 23... Rac8
{[%clk 0:01:48.4]} 24. Qf6 {[%clk 0:01:35.4]} 24... h5 {[%clk 0:01:23.2]} 25.
Rd3 {[%clk 0:01:28.4]} 25... axb4 {[%clk 0:01:17.3]} 26. axb4 {[%clk 0:01:25.6]}
26... Qb5 {[%clk 0:01:17]} 27. Rad1 {[%clk 0:01:22.8]} 27... Rf8 {[%clk
0:01:09.1]} 28. Rd8 {[%clk 0:01:13.2]} 28... Re8 {[%clk 0:01:06.5]} 29. c4
{[%clk 0:00:56.7]} 29... Qa4 {[%clk 0:00:48.7]} 30. b5 {[%clk 0:00:49.3]} 30...
Rc8 {[%clk 0:00:48.6]} 31. Rxe8+ {[%clk 0:00:26.5]} 31... Rxe8 {[%clk 0:00:48]}
32. Qd4 {[%clk 0:00:21.2]} 32... b6 {[%clk 0:00:45.9]} 33. Rd2 {[%clk
0:00:18.9]} 33... Nf5 {[%clk 0:00:42.6]} 34. Bxf5 {[%clk 0:00:17.8]} 34... exf5
{[%clk 0:00:42.1]} 35. Qxb6 {[%clk 0:00:13]} 35... Qxc4 {[%clk 0:00:34.3]} 36.
g3 {[%clk 0:00:05.2]} 36... Re1+ {[%clk 0:00:29.6]} 37. Kh2 {[%clk 0:00:04.9]}
37... Qe4 {[%clk 0:00:23.3]} 38. Qd8+ {[%clk 0:00:03.6]} 38... Kh7 {[%clk
0:00:22.4]} 39. f3 {[%clk 0:00:01.3]} 39... Qxf3 {[%clk 0:00:22.4]} 40. Rg2
{[%clk 0:00:01.9]} 40... Re2 {[%clk 0:00:21.3]} 41. Rxe2 {[%clk 0:00:01.7]}
41... Qxe2+ {[%clk 0:00:21.9]} 42. Kh3 {[%clk 0:00:02.1]} 42... Qxb5 {[%clk
0:00:22.1]} 43. Qf6 {[%clk 0:00:02.7]} 43... Qd5 {[%clk 0:00:21.4]} 44. Kh2
{[%clk 0:00:02.2]} 44... Qe6 {[%clk 0:00:21.8]} 45. Qd8 {[%clk 0:00:02]} 45...
Kg7 {[%clk 0:00:21.7]} 46. Kg2 {[%clk 0:00:01.7]} 46... Qe2+ {[%clk 0:00:21.4]}
47. Kh3 {[%clk 0:00:01.9]} 47... Qg4+ {[%clk 0:00:18.9]} 48. Kh2 {[%clk
0:00:02.2]} 48... Qe4 {[%clk 0:00:15.9]} 0-1